fUSD/lending_fUSD_20240503
["ID","MTS","AMOUNT","RATE_DAILY","PERIOD"]
[325313446,1714701040748,-7447.30996551,0.00028439,30]
[325313457,1714701040836,-492.53067411,0.00028439,30]
[325313472,1714701040970,-2424.84669876,0.00028439,30]
[325313555,1714701042508,546.98338678,9.6e-05,2]
[325313573,1714701042745,-685.09,0.00028255,10]
[325313574,1714701042754,-23.6179541,0.0002833,2]
[325313575,1714701042767,-2578.16700683,0.0002833,2]
[325313586,1714701043630,-440.83887464,0.0002833,2]
[325313587,1714701043639,-150.0,0.00028411,2]
[325313588,1714701043648,-2322.97845638,0.00028439,30]
[325313589,1714701043660,-2752.49858466,0.00028439,30]
[325313591,1714701045898,-485.27295591,0.00028364,2]
[325313592,1714701049218,460.94906508,0.00012,2]
[325313593,1714701133148,1517.93901251,0.00012,2]
[325313594,1714701133917,549.58229469,0.00012,2]
[325313595,1714701135041,19682.54185445,0.00012,2]
[325313596,1714701140076,155.42375665,0.00012,2]
[325313597,1714701141442,20253.96541448,0.00012,2]
[325313598,1714701145604,289.58711447,0.00012,2]
[325313603,1714701441069,440.98994469,0.00025108,120]
[325313617,1714702232512,-409.47154605,0.00012241,2]
[325313618,1714702232522,-364.13980716,0.00012242,2]
[325313619,1714702232531,-124.38399276,0.00012245,2]
[325313620,1714702232679,-295.61600724,0.00012245,2]
[325313621,1714702232689,-456.15237091,0.00012307,2]
[325313622,1714702232699,-1006.73017926,0.00012502,2]
[325313623,1714702232709,-446.45792972,0.000128,2]
[325313624,1714702232718,-211.12404217,0.00012899,2]
[325313625,1714702232728,-15687.64073933,0.00012899,2]
[325313626,1714702232738,-295.5341,0.000129,2]
[325313627,1714702232749,-51063.6844,0.000129,2]
[325313628,1714702232759,-44016.2968,0.000129,2]
[325313629,1714702232769,-2069.6125,0.000129,2]
[325313630,1714702232779,-2500.0,0.000129,2]
[325313631,1714702232789,-1000.0,0.000129,2]
[325313632,1714702232800,-160.6829226,0.0001299,2]
[325313633,1714702232809,-263649.41586036,0.00013,2]
[325313654,1714702238268,-189.09,0.0001299,2]
[325313655,1714702238278,-189.09,0.0001299,2]
[325313656,1714702238288,-189.09,0.0001299,2]
[325313657,1714702238298,-189.09,0.0001299,2]
[325313658,1714702238307,-477607.79897508,0.00013,2]
[325313659,1714702238317,-323.75400239,0.00013499,2]
[325313660,1714702238326,-150.99,0.00013599,2]
[325313661,1714702238336,-193.07627398,0.00013699,2]
[325313662,1714702238345,-270.14,0.000137,2]
[325313663,1714702238354,-270.14,0.000137,2]
[325313664,1714702238364,-270.14,0.000137,2]
[325313665,1714702238373,-270.14,0.000137,2]
[325313666,1714702238382,-270.14,0.000137,2]
[325313667,1714702238392,-764.97569105,0.00013799,2]
[325313668,1714702238401,-499.99,0.000161,2]
[325313669,1714702238415,-150.0,0.000161,2]
[325313670,1714702238426,-764.97569099,0.00016242,2]
[325313671,1714702238436,-157.99467699,0.0001788,2]
[325313672,1714702238446,-450.0,0.00018,3]
[325313673,1714702238456,-500.0,0.000185,2]
[325313674,1714702238466,-764.97569099,0.00018685,2]
[325313675,1714702238476,-23374.48506047,0.00019,5]
[325313676,1714702238486,-150.0,0.00019081,2]
[325313677,1714702238498,-250.0,0.00019095,2]
[325313678,1714702238508,-458.76,0.00019149,2]
[325313679,1714702238518,-500.0,0.00019178,2]
[325313680,1714702238528,-500.0,0.00019178,2]
[325313681,1714702238538,-296.07649541,0.00019178,2]
[325313682,1714702238548,-500.0,0.00019178,2]
[325313683,1714702238558,-414.31920907,0.00019178,2]
[325313684,1714702238568,-500.0,0.00019178,2]
[325313685,1714702238578,-275.18274927,0.00019178,2]
[325313686,1714702238588,-250.0,0.00019196,2]
[325313687,1714702238598,-394.95464711,0.0002,2]
[325313688,1714702238607,-287.11697069,0.0002,2]
[325313689,1714702238618,-500.0,0.0002,3]
[325313690,1714702238627,-23900.0,0.00020028,2]
[325313691,1714702238637,-150.0,0.00020264,2]
[325313692,1714702238647,-328.85,0.00020326,2]
[325313693,1714702238657,-1110.43,0.00020401,2]
[325313694,1714702238667,-184.36,0.00020417,2]
[325313695,1714702238678,-161.05,0.00020487,2]
[325313696,1714702238687,-161.05,0.00020639,2]
[325313697,1714702238697,-161.05,0.00020792,2]
[325313698,1714702238707,-155.0,0.000209,2]
[325313699,1714702238717,-161.05,0.00020944,2]
[325313700,1714702238726,-1128.47,0.00020951,2]
[325313701,1714702238736,-2230.57,0.00020951,2]
[325313702,1714702238747,-11280.29,0.00020951,2]
[325313703,1714702238757,-2942.0,0.00021,5]
[325313704,1714702238766,-671.15,0.00021023,2]
[325313705,1714702238776,-593.23,0.00021049,2]
[325313706,1714702238786,-161.05,0.00021097,2]
[325313707,1714702238795,-764.97569099,0.00021128,2]
[325313708,1714702238805,-161.05,0.00021249,2]
[325313709,1714702238815,-350.45,0.00021395,2]
[325313710,1714702238824,-161.05,0.00021402,2]
[325313711,1714702238834,-973.781,0.00021498,2]
[325313712,1714702238844,-2307.322,0.00021498,2]
[325313713,1714702238854,-1400.507,0.00021498,2]
[325313714,1714702238864,-1262.744,0.00021498,2]
[325313715,1714702238874,-1233.742,0.00021498,2]
[325313716,1714702238884,-544.097,0.00021498,2]
[325313717,1714702238894,-150.0,0.00021498,2]
[325313718,1714702238905,-421.0,0.00021498,2]
[325313719,1714702238915,-215.0,0.00021498,2]
[325313720,1714702238925,-444.0,0.00021498,2]
[325313721,1714702238936,-5920.42,0.00021498,2]
[325313722,1714702238947,-5758.898,0.00021498,2]
[325313723,1714702238958,-37903.378,0.00021498,2]
[325313724,1714702238967,-2300.098,0.00021498,2]
[325313725,1714702238977,-161.05,0.00021554,2]
[325313726,1714702238987,-192.88,0.00021644,2]
[325313727,1714702238998,-167.44882847,0.00021861,2]
[325313728,1714702239007,-250.0,0.00021918,2]
[325313729,1714702239413,-550.0,0.00022,3]
[325313730,1714702239424,-167.44882847,0.00022082,2]
[325313731,1714702239434,-158.18617806,0.00022147,2]
[325313732,1714702239443,-171.82,0.00022393,2]
[325313733,1714702239453,-4030.0,0.000227,3]
[325313734,1714702239462,-171.06509828,0.00022838,2]
[325313735,1714702239472,-328.85,0.00022866,2]
[325313736,1714702239481,-167.44882847,0.0002322,2]
[325313737,1714702239490,-167.44882847,0.00023239,2]
[325313738,1714702239501,-1000.0,0.000233,2]
[325313739,1714702239510,-223.0,0.000233,2]
[325313740,1714702239520,-152.99,0.00023393,2]
[325313741,1714702239530,-152.99,0.00023402,2]
[325313742,1714702239539,-152.99,0.00023412,2]
[325313743,1714702239550,-152.99,0.00023422,2]
[325313744,1714702239559,-152.99,0.00023432,2]
[325313745,1714702239568,-152.99,0.00023441,2]
[325313746,1714702239577,-152.99,0.00023451,2]
[325313747,1714702239587,-152.99,0.00023461,2]
[325313748,1714702239596,-152.99,0.00023471,2]
[325313749,1714702239606,-152.99,0.0002348,2]
[325313750,1714702239615,-152.99,0.0002349,2]
[325313751,1714702239624,-358.12367879,0.00023498,2]
[325313752,1714702239634,-152.99,0.000235,2]
[325313753,1714702239643,-152.99,0.0002351,2]
[325313754,1714702239652,-764.97569099,0.00023571,2]
[325313755,1714702239661,-165.3,0.00023579,2]
[325313756,1714702239671,-671.15,0.00023651,2]
[325313757,1714702239680,-154.98577822,0.0002375,2]
[325313758,1714702239690,-200.38405536,0.0002397,2]
[325313759,1714702239700,-448.52014656,0.0002397,2]
[325313760,1714702239709,-350.45,0.0002407,2]
[325313761,1714702239718,-152.6037596,0.0002426,2]
[325313762,1714702239727,-352.0,0.000243,2]
[325313763,1714702239737,-200.0,0.00024421,2]
[325313764,1714702239747,-157.01158275,0.00024513,2]
[325313765,1714702239756,-151.87422456,0.00024927,2]
[325313766,1714702239766,-155.0,0.00025,2]
[325313767,1714702239775,-5000.0,0.00025,2]
[325313768,1714702239785,-1000.0,0.00025027,2]
[325313769,1714702239794,-170.82142587,0.00025051,2]
[325313771,1714702239803,-189.09,0.00025098,2]
[325313773,1714702239813,-189.09,0.00025098,2]
[325313775,1714702239822,-3483.19638989,0.00025108,2]
[325313776,1714702239833,-2212.56597326,0.00025108,2]
[325313777,1714702239842,-68183.12313086,0.00025108,7]
[325313778,1714702239856,-351.13088306,0.00025108,7]
[325313779,1714702240158,-21378.63540285,0.00025108,7]
[325313780,1714702240169,-4677.57268814,0.00025108,7]
[325313781,1714702240184,-39660.966,0.00025108,7]
[325313782,1714702240230,-604.57016637,0.00025108,7]
[325313783,1714702240242,-250.13277065,0.00025108,7]
[325313784,1714702240254,-348.7764977,0.00025108,7]
[325313785,1714702240266,-1512.1465,0.00025108,7]
[325313818,1714702243088,-478.70000222,0.00025108,7]
[325313819,1714702243110,-19527.30545311,0.00025108,7]
[325313820,1714702243608,-15169.35298071,0.00025108,7]
[325313821,1714702243618,-167.58951255,0.00025108,2]
[325313822,1714702243627,-37398.54616437,0.00025108,2]
[325313823,1714702243637,-1036.89152846,0.00025108,2]
[325313824,1714702243647,-155.0,0.00025108,2]
[325313825,1714702243656,-443.55004685,0.00025108,2]
[325313826,1714702243665,-358.12367878,0.00025349,2]
[325313827,1714702243675,-448.52014656,0.00025364,2]
[325313828,1714702243684,-328.85,0.00025407,2]
[325313829,1714702243693,-151.87422436,0.00025685,2]
[325313830,1714702243703,-764.97569099,0.00026014,2]
[325313831,1714702243712,-1000.0,0.000261,2]
[325313832,1714702243721,-671.15,0.00026279,2]
[325313833,1714702243731,-323.75400239,0.000264,2]
[325313834,1714702243740,-151.87422436,0.00026442,2]
[325313835,1714702243751,-396.433576,0.000265,2]
[325313836,1714702243760,-350.45,0.00026744,120]
[325313837,1714702243776,-448.52014656,0.00026757,2]
[325313838,1714702243787,-152.6037596,0.00026805,2]
[325313839,1714702243797,-158.18617808,0.00026865,2]
[325313840,1714702243807,-1009.0,0.000269,2]
[325313841,1714702243817,-977.79567631,0.00027016,2]
[325313842,1714702243827,-1299.5370285,0.00027016,2]
[325313843,1714702243838,-1667.97123149,0.00027016,2]
[325313844,1714702243848,-171.82,0.00027144,2]
[325313845,1714702243859,-358.12367878,0.00027199,2]
[325313846,1714702243868,-151.87422436,0.000272,2]
[325313847,1714702243878,-1366.43516454,0.00027397,30]
[325313848,1714702243889,-150.8,0.00027397,2]
[325313849,1714702243899,-976.56,0.00027397,10]
[325313850,1714702243909,-210.49567394,0.00027451,2]
[325313851,1714702243918,-419.31,0.00027616,2]
[325313852,1714702243928,-522.27,0.00027616,2]
[325313853,1714702243938,-752.34683881,0.000277,2]
[325313854,1714702243948,-357.10027948,0.000277,2]
[325313855,1714702243957,-192.88,0.00027714,2]
[325313856,1714702243967,-328.85,0.00027948,2]
[325313857,1714702243978,-713.70407169,0.00027949,2]
[325313858,1714702243988,-151.87422436,0.00027958,2]
[325313859,1714702243998,-1560.32144644,0.00027968,2]
[325313860,1714702244009,-474.24230074,0.00028072,2]
[325313861,1714702244019,-5000.0,0.000281,2]
[325313862,1714702244029,-3497.72576639,0.0002813,2]
[325313863,1714702244039,-152.0,0.00028145,3]
[325313864,1714702244048,-448.52014656,0.00028151,2]
[325313865,1714702244058,-252.70859106,0.00028153,2]
[325313866,1714702244068,-200.0,0.00028212,2]
[325313867,1714702244079,-1000.0,0.00028212,10]
[325313868,1714702244088,-500.0,0.00028212,2]
[325313869,1714702244098,-157.050311,0.00028228,6]
[325313870,1714702244108,-770.2951,0.00028232,2]
[325313871,1714702244118,-47617.2035,0.00028232,2]
[325313872,1714702244127,-10960.5675,0.00028232,2]
[325313873,1714702244137,-500.0,0.00028232,2]
[325313874,1714702244147,-6552.2145,0.00028232,2]
[325313875,1714702244156,-11780.02637763,0.0002825,2]
[325313876,1714702244166,-150.0,0.00028257,2]
[325313877,1714702244176,-200.0,0.00028262,2]
[325313878,1714702244190,-1000.0,0.00028262,10]
[325313879,1714702244201,-500.0,0.00028262,2]
[325313880,1714702244211,-200.0,0.00028262,2]
[325313881,1714702244221,-150.0,0.00028267,2]
[325313882,1714702244231,-150.0,0.00028284,2]
[325313883,1714702244241,-200.0,0.00028295,2]
[325313884,1714702244250,-1000.0,0.00028295,10]
[325313885,1714702244266,-500.0,0.00028295,2]
[325313886,1714702244276,-200.0,0.00028295,2]
[325313887,1714702244285,-200.21406391,0.00028297,2]
[325313888,1714702244295,-25691.680694,0.000283,2]
[325313889,1714702244306,-150.0,0.00028304,2]
[325313890,1714702244317,-150.0,0.00028306,2]
[325313891,1714702244327,-150.0,0.00028311,2]
[325313892,1714702244338,-150.0,0.00028315,2]
[325313893,1714702244349,-150.0,0.00028318,2]
[325313894,1714702244359,-150.0,0.00028319,2]
[325313895,1714702244370,-150.0,0.00028323,2]
[325313896,1714702244380,-157.050311,0.00028328,10]
[325313897,1714702244391,-150.0,0.00028336,2]
[325313898,1714702244401,-150.0,0.00028338,2]
[325313899,1714702244411,-150.0,0.00028338,2]
[325313900,1714702244420,-150.0,0.00028338,2]
[325313901,1714702244431,-150.0,0.00028339,2]
[325313902,1714702244442,-150.0,0.00028344,2]
[325313903,1714702244453,-551.24536504,0.00028351,2]
[325313904,1714702244462,-150.0,0.00028358,2]
[325313905,1714702244472,-150.0,0.00028365,2]
[325313906,1714702244483,-150.0,0.0002837,2]
[325313907,1714702244492,-150.0,0.00028392,2]
[325313908,1714702244505,-2000.0,0.000284,30]
[325313909,1714702244514,-150.0,0.00028411,2]
[325313910,1714702244524,-150.0,0.00028416,2]
[325313911,1714702244534,-150.0,0.0002842,2]
[325313912,1714702244544,-150.0,0.0002842,2]
[325313913,1714702244553,-157.050311,0.00028428,6]
[325313914,1714702244563,-189.09,0.00028428,2]
[325313915,1714702244572,-150.0,0.00028434,2]
[325313916,1714702244583,-623.39189432,0.00028437,2]
[325313917,1714702244592,-1000.0,0.00028437,2]
[325313918,1714702244602,-187.20576344,0.00028437,2]
[325313919,1714702244611,-508.44818116,0.00028437,2]
[325313920,1714702244621,-17476.79391696,0.00028437,2]
[325313921,1714702244630,-151.0,0.00028438,7]
[325313922,1714702244641,-151.0,0.00028438,7]
[325313923,1714702244651,-151.0,0.00028438,7]
[325313924,1714702244660,-151.0,0.00028438,7]
[325313925,1714702244670,-151.0,0.00028438,7]
[325313926,1714702244680,-151.0,0.00028438,7]
[325313927,1714702244689,-180.483188,0.00028438,7]
[325313928,1714702244699,-151.0,0.00028438,7]
[325313929,1714702244709,-151.0,0.00028438,7]
[325313930,1714702244719,-151.44903,0.00028438,7]
[325313931,1714702244728,-228.460506,0.00028438,7]
[325313932,1714702244738,-228.460506,0.00028438,7]
[325313933,1714702244747,-151.0,0.00028438,7]
[325313934,1714702244758,-151.0,0.00028438,7]
[325313935,1714702244767,-151.0,0.00028438,7]
[325313936,1714702244777,-151.0,0.00028438,7]
[325313937,1714702244787,-479.238633,0.00028438,7]
[325313938,1714702244797,-212.859154,0.00028438,7]
[325313939,1714702244807,-479.238633,0.00028438,7]
[325313940,1714702244817,-212.859154,0.00028438,7]
[325313941,1714702244827,-384.052771,0.00028438,7]
[325313942,1714702244838,-384.052771,0.00028438,7]
[325313943,1714702244849,-1596.737925,0.00028438,7]
[325313944,1714702244860,-1596.737925,0.00028438,7]
[325313945,1714702244870,-717.987024,0.00028438,7]
[325313946,1714702244880,-717.987024,0.00028438,7]
[325313947,1714702244891,-557.47819412,0.00028438,7]
[325313948,1714702244901,-1310.84167144,0.00028438,2]
[325313949,1714702244911,-1274.68073217,0.00028438,2]
[325313950,1714702244921,-151.0,0.00028439,7]
[325313951,1714702244931,-2000.0,0.00028439,2]
[325313952,1714702244941,-200.0,0.00028439,2]
[325313953,1714702244950,-888.0,0.00028439,3]
[325313954,1714702244960,-448.46277,0.00028439,2]
[325313955,1714702244970,-189.09,0.00028441,2]
[325313956,1714702244979,-189.09,0.00028441,2]
[325313957,1714702244989,-189.09,0.00028441,2]
[325313958,1714702244999,-150.0,0.00028442,2]
[325313959,1714702245009,-150.0,0.00028443,2]
[325313960,1714702245019,-150.0,0.00028446,2]
[325313961,1714702245028,-150.0,0.00028446,2]
[325313962,1714702245038,-212.475236,0.00028451,7]
[325313963,1714702245048,-212.475236,0.00028451,7]
[325313964,1714702245058,-151.0,0.00028451,7]
[325313965,1714702245067,-151.0,0.00028451,7]
[325313966,1714702245077,-151.0,0.00028451,7]
[325313967,1714702245087,-274.294227,0.00028451,7]
[325313968,1714702245098,-274.294227,0.00028451,7]
[325313969,1714702245107,-151.0,0.00028451,7]
[325313970,1714702245117,-153.370279,0.00028451,7]
[325313971,1714702245126,-433.089452,0.00028451,7]
[325313972,1714702245136,-433.089452,0.00028451,7]
[325313973,1714702245145,-352.0,0.00028451,7]
[325313974,1714702245155,-184.258595,0.00028451,7]
[325313975,1714702245164,-352.0,0.00028451,7]
[325313976,1714702245173,-184.258595,0.00028451,7]
[325313977,1714702245186,-781.794431,0.00028451,7]
[325313978,1714702245195,-151.0,0.00028451,7]
[325313979,1714702245206,-781.794431,0.00028451,7]
[325313980,1714702245215,-176.440226,0.00028451,7]
[325313981,1714702245226,-176.440226,0.00028451,7]
[325313982,1714702245237,-214.455144,0.00028451,7]
[325313983,1714702245246,-151.0,0.00028451,7]
[325313984,1714702245258,-151.0,0.00028451,7]
[325313985,1714702245267,-151.0,0.00028451,7]
[325313986,1714702245281,-151.0,0.00028451,7]
[325313987,1714702245290,-151.0,0.00028451,7]
[325313988,1714702245300,-151.390539,0.00028451,7]
[325313989,1714702245310,-151.0,0.00028451,7]
[325313990,1714702245320,-421.931409,0.00028451,7]
[325313991,1714702245329,-421.931409,0.00028451,7]
[325313992,1714702245339,-187.416152,0.00028451,7]
[325313993,1714702245351,-151.0,0.00028451,7]
[325313994,1714702245360,-187.416152,0.00028451,7]
[325313995,1714702245370,-172.813278,0.00028451,7]
[325313996,1714702245379,-1537.577661,0.00028451,7]
[325313997,1714702245389,-1537.577661,0.00028451,7]
[325313998,1714702245399,-151.0,0.00028451,7]
[325313999,1714702245408,-151.0,0.00028451,7]
[325314000,1714702245417,-151.578792,0.00028451,7]
[325314001,1714702245427,-172.519629,0.00028451,7]
[325314002,1714702245438,-151.0,0.00028451,7]
[325314003,1714702245448,-1357.493447,0.00028451,7]
[325314004,1714702245457,-1357.493447,0.00028451,7]
[325314005,1714702245467,-151.0,0.00028451,7]
[325314006,1714702245477,-151.0,0.00028451,7]
[325314007,1714702245488,-152.420392,0.00028451,7]
[325314008,1714702245497,-186.106738,0.00028451,7]
[325314009,1714702245507,-186.106738,0.00028451,7]
[325314010,1714702245517,-1172.509338,0.00028451,7]
[325314011,1714702245527,-1172.509338,0.00028451,7]
[325314012,1714702245537,-511.842358,0.00028451,7]
[325314013,1714702245839,-511.842358,0.00028451,7]
[325314014,1714702245851,-151.0,0.00028451,7]
[325314015,1714702245860,-151.0,0.00028451,7]
[325314016,1714702245870,-370.901692,0.00028451,7]
[325314017,1714702245880,-151.0,0.00028451,7]
[325314018,1714702245890,-370.901692,0.00028451,7]
[325314019,1714702245899,-1394.852292,0.00028451,7]
[325314021,1714702245909,-1317.459808,0.00028451,7]
[325314023,1714702245919,-151.0,0.00028451,7]
[325314025,1714702245928,-1394.852292,0.00028451,7]
[325314026,1714702245939,-1317.459808,0.00028451,7]
[325314027,1714702245949,-475.516263,0.00028451,7]
[325314028,1714702245959,-153.587121,0.00028451,7]
[325314029,1714702245969,-153.587121,0.00028451,7]
[325314030,1714702245980,-475.516263,0.00028451,7]
[325314031,1714702245992,-151.0,0.00028451,7]
[325314032,1714702246002,-151.538416,0.00028451,7]
[325314033,1714702246013,-227.05292,0.00028451,7]
[325314034,1714702246022,-151.0,0.00028451,7]
[325314035,1714702246031,-227.05292,0.00028451,7]
[325314036,1714702246040,-346.862973,0.00028451,7]
[325314037,1714702246050,-151.0,0.00028451,7]
[325314038,1714702246060,-368.000156,0.00028451,7]
[325314039,1714702246069,-151.0,0.00028451,7]
[325314040,1714702246079,-346.862973,0.00028451,7]
[325314042,1714702246088,-368.000156,0.00028451,7]
[325314044,1714702246097,-151.0,0.00028451,7]
[325314046,1714702246106,-1626.665261,0.00028451,7]
[325314048,1714702246116,-1626.665261,0.00028451,7]
[325314050,1714702246125,-151.0,0.00028451,7]
[325314052,1714702246134,-151.0,0.00028451,7]
[325314054,1714702246144,-1054.971377,0.00028451,7]
[325314055,1714702246153,-1054.971377,0.00028451,7]
[325314056,1714702246163,-1466.201507,0.00028451,7]
[325314057,1714702246172,-1466.201507,0.00028451,7]
[325314059,1714702246184,-495.191732,0.00028451,7]
[325314060,1714702246197,-495.191732,0.00028451,7]
[325314061,1714702246207,-151.0,0.00028451,7]
[325314062,1714702246217,-151.0,0.00028451,7]
[325314063,1714702246227,-151.0,0.00028451,7]
[325314064,1714702246237,-151.0,0.00028451,7]
[325314065,1714702246247,-287.144688,0.00028451,7]
[325314066,1714702246257,-287.144688,0.00028451,7]
[325314067,1714702246266,-151.0,0.00028451,7]
[325314068,1714702246278,-363.527423,0.00028451,7]
[325314069,1714702246288,-363.527423,0.00028451,7]
[325314071,1714702246298,-2390.666701,0.00028451,7]
[325314072,1714702246308,-2390.666701,0.00028451,7]
[325314073,1714702246317,-151.0,0.00028451,7]
[325314074,1714702246326,-169.091682,0.00028451,7]
[325314075,1714702246335,-169.091682,0.00028451,7]
[325314076,1714702246344,-151.0,0.00028451,7]
[325314077,1714702246354,-362.566471,0.00028451,7]
[325314078,1714702246363,-151.0,0.00028451,7]
[325314079,1714702246371,-362.566471,0.00028451,7]
[325314080,1714702246381,-151.0,0.00028451,7]
[325314081,1714702246390,-151.0,0.00028451,7]
[325314082,1714702246399,-151.0,0.00028451,7]
[325314083,1714702246408,-151.0,0.00028451,7]
[325314084,1714702246417,-151.0,0.00028451,7]
[325314085,1714702246426,-152.665598,0.00028451,7]
[325314086,1714702246435,-151.0,0.00028451,7]
[325314087,1714702246444,-227.215655,0.00028451,7]
[325314088,1714702246454,-152.665598,0.00028451,7]
[325314089,1714702246463,-5678.021444,0.00028451,7]
[325314090,1714702246472,-190562.90519531,0.00028451,30]
[325314091,1714702247915,-410.15274604,0.00017259,2]
[325314092,1714702247925,-170.68725396,0.00028451,7]
[325314093,1714702270005,5932.12,0.00025108,120]
[325314107,1714703432274,-382.55482478,0.00019178,2]
[325314108,1714703432284,-247.53740487,0.00020212,2]
[325314109,1714703432294,-130.82177908,0.0002053,2]
[325314110,1714703432466,-36.62704939,0.0002053,2]
[325314111,1714703432476,-499.99,0.00020546,2]
[325314112,1714703432487,-387.95,0.00020546,2]
[325314113,1714703432496,-155.0,0.000209,2]
[325314114,1714703432507,-152.60375961,0.00021041,2]
[325314115,1714703432516,-469.06,0.00021041,2]
[325314116,1714703432526,-1000.0,0.00021067,2]
[325314117,1714703432535,-3698.769191,0.00021247,2]
[325314118,1714703432548,-716.59388063,0.00021247,2]
[325314119,1714703432562,-2657.0803135,0.00021247,2]
[325314120,1714703432573,-6004.99475864,0.00021247,2]
[325314122,1714703432645,-1135.30870999,0.00021247,2]
[325314124,1714703432657,-443.35922585,0.00021247,2]
[325314126,1714703432669,-1694.62264807,0.00021247,2]
[325314164,1714703438545,-13649.26127232,0.00021247,2]
[325314165,1714703438561,-973.781,0.00021247,2]
[325314166,1714703438570,-2307.322,0.00021247,2]
[325314167,1714703438580,-5920.42,0.00021247,2]
[325314168,1714703438590,-5758.898,0.00021247,2]
[325314169,1714703438602,-1400.507,0.00021247,2]
[325314170,1714703438612,-2300.098,0.00021247,2]
[325314171,1714703438621,-37903.378,0.00021247,2]
[325314172,1714703438635,-544.097,0.00021247,2]
[325314173,1714703438644,-1262.744,0.00021247,2]
[325314174,1714703438654,-152.60375961,0.00021285,2]
[325314175,1714703438663,-168.02,0.00021644,2]
[325314176,1714703438673,-200.0,0.00021836,2]
[325314177,1714703438682,-152.99,0.00022104,2]
[325314178,1714703438691,-152.99,0.00022113,2]
[325314179,1714703438700,-152.99,0.00022122,2]
[325314180,1714703438711,-152.99,0.00022131,2]
[325314181,1714703438720,-152.99,0.00022141,2]
[325314182,1714703438730,-152.99,0.0002215,2]
[325314183,1714703438744,-152.99,0.00022159,2]
[325314184,1714703438753,-152.99,0.00022168,2]
[325314185,1714703438763,-152.99,0.00022177,2]
[325314186,1714703438773,-150.0,0.00022185,2]
[325314187,1714703438783,-152.99,0.00022187,2]
[325314188,1714703438792,-152.99,0.00022196,2]
[325314189,1714703438802,-152.99,0.00022205,2]
[325314190,1714703438811,-152.99,0.00022214,2]
[325314191,1714703438821,-161.06,0.0002227,2]
[325314192,1714703438830,-157.52757104,0.00022295,2]
[325314193,1714703438839,-159.87896086,0.00022301,2]
[325314194,1714703438849,-192.99083337,0.00022328,2]
[325314195,1714703438859,-23900.0,0.00022366,2]
[325314196,1714703438868,-1000.0,0.00022411,2]
[325314197,1714703438877,-4030.0,0.000225,3]
[325314198,1714703438888,-2000.0,0.000225,2]
[325314199,1714703438897,-161.06,0.00022656,2]
[325314200,1714703438907,-158.18617806,0.00022697,2]
[325314201,1714703438916,-2000.0,0.00022948,3]
[325314202,1714703438925,-500.0,0.00022992,2]
[325314203,1714703438935,-161.06,0.00023043,2]
[325314204,1714703438944,-165.3,0.00023095,2]
[325314205,1714703438954,-1504.24968072,0.000234,2]
[325314206,1714703438963,-161.06,0.0002343,2]
[325314207,1714703438972,-250.0,0.00023445,2]
[325314208,1714703438981,-175.24,0.00024062,2]
[325314210,1714703438993,-250.0,0.00024152,2]
[325314212,1714703439003,-250.0,0.00024184,2]
[325314214,1714703439012,-150.11009363,0.00025,10]
[325314217,1714703439022,-155.0,0.00025,2]
[325314218,1714703439032,-5000.0,0.00025007,2]
[325314221,1714703439042,-1000.0,0.00025008,2]
[325314223,1714703439051,-1781.3801,0.00025008,2]
[325314225,1714703439061,-335.20775588,0.00025108,7]